bitfinex/quotes_BTCUSD_20251124
["timestamp","ask_amount","ask_price","bid_price","bid_amount"]
[1764010142354,0.10051681,88700.0,88699.0,0.28773168]
[1764010142770,0.10051681,88700.0,88699.0,0.27773168]
[1764010142969,0.10051681,88700.0,88699.0,0.38540612]
[1764010143976,0.10112898,88700.0,88699.0,0.37540612]
[1764010144424,0.10112898,88700.0,88699.0,0.38540612]
[1764010144605,0.10112898,88700.0,88699.0,0.38640612]
[1764010144800,0.10112898,88700.0,88699.0,0.37540612]
[1764010145067,0.10112898,88700.0,88699.0,0.27773168]
[1764010145190,0.11161299,88700.0,88699.0,0.22848168]
[1764010145387,0.11161299,88700.0,88699.0,0.27673168]
[1764010145770,0.11161299,88700.0,88699.0,0.02091]
[1764010145902,0.11877299,88700.0,88699.0,0.24639168]
[1764010146088,0.11877299,88700.0,88699.0,0.24539168]
[1764010146293,0.11161299,88700.0,88699.0,0.02091]
[1764010146492,0.11877299,88700.0,88699.0,0.22648168]
[1764010146712,0.11161299,88700.0,88699.0,0.24639168]
[1764010146932,0.11877299,88700.0,88699.0,0.22748168]
[1764010147341,0.11161299,88700.0,88699.0,0.001]
[1764010147542,0.11877299,88700.0,88699.0,0.22648168]
[1764010147742,0.11877299,88700.0,88699.0,0.22748168]
[1764010148221,0.11877299,88700.0,88699.0,0.002]
[1764010148628,0.11877299,88700.0,88699.0,0.24739168]
[1764010148758,0.11877299,88700.0,88699.0,0.002]
[1764010148967,0.35729623,88700.0,88699.0,0.002]
[1764010149214,0.36445623,88700.0,88699.0,0.002]
[1764010149386,0.39644623,88700.0,88699.0,0.002]
[1764010149587,0.13897709,88700.0,88699.0,0.001]
[1764010149788,0.15025104,88700.0,88685.0,0.04261586]
[1764010149984,0.01050811,88699.0,88695.0,0.22549008]
[1764010150155,0.01050811,88698.0,88696.0,0.22548931]
[1764010150351,0.01050811,88697.0,88696.0,0.22548931]
[1764010150815,0.01766811,88697.0,88696.0,0.22548931]
[1764010151561,0.24315487,88697.0,88695.0,0.02316601]
[1764010151760,0.01050811,88696.0,88695.0,0.22549185]
[1764010152419,0.01050811,88696.0,88695.0,0.24804103]
[1764010152574,0.01766811,88696.0,88695.0,0.29929103]
[1764010152779,0.01766811,88696.0,88695.0,0.27674185]
[1764010153646,0.01050811,88696.0,88695.0,0.28674185]
[1764010153819,0.10051681,88700.0,88699.0,0.22548168]
[1764010154020,0.11106731,88700.0,88699.0,0.26873984]
[1764010154250,0.10051681,88700.0,88699.0,0.27787168]
[1764010155126,0.10051681,88700.0,88699.0,0.28887168]
[1764010155358,0.10051681,88700.0,88699.0,0.27887168]
[1764010155493,0.10051681,88700.0,88699.0,0.37973197]
[1764010155690,0.10112898,88700.0,88699.0,0.37973197]
[1764010155891,0.10112898,88700.0,88699.0,0.27887168]
[1764010156316,0.323,88729.0,88712.0,0.01127243]
[1764010156518,0.01127078,88725.0,88709.0,0.01127281]
[1764010156844,0.0003978,88713.0,88712.0,0.22544864]
[1764010157032,0.01811719,88713.0,88712.0,0.22544864]
[1764010157234,0.01095719,88713.0,88712.0,0.22544864]
[1764010157412,0.01095719,88713.0,88712.0,0.29421222]
[1764010157618,0.01095719,88713.0,88712.0,0.31492222]
[1764010158202,0.01095719,88713.0,88712.0,0.22544864]
[1764010158963,0.01095719,88713.0,88712.0,0.27783864]
[1764010159103,0.01811719,88713.0,88712.0,0.27783864]
[1764010160328,0.0003978,88713.0,88712.0,0.27783864]
[1764010160549,0.0075578,88713.0,88712.0,0.27783864]
[1764010160803,0.0075578,88713.0,88712.0,0.37710086]
[1764010161179,0.0075578,88713.0,88705.0,0.01586]
[1764010161349,0.00716,88713.0,88712.0,0.22544864]
[1764010161792,0.00716,88713.0,88712.0,0.02071]
[1764010161993,0.00716,88713.0,88712.0,0.24615356]
[1764010162866,0.01127116,88722.0,88712.0,0.24615356]
[1764010162867,0.01126989,88732.0,88712.0,0.06366243]
[1764010163112,0.01772162,88728.0,88727.0,0.22541052]
[1764010163316,0.01056162,88728.0,88727.0,0.22541052]
[1764010163511,0.02899201,88728.0,88720.0,0.01586]
[1764010163686,0.01056138,88727.0,88724.0,0.22541662]
[1764010163886,0.01056138,88726.0,88725.0,0.22541561]
[1764010164087,0.01772138,88726.0,88725.0,0.22541561]
[1764010164701,0.01772138,88726.0,88724.0,0.22541754]
[1764010164898,0.01056138,88725.0,88724.0,0.29463035]
[1764010165316,0.00716,88726.0,88724.0,0.06921281]
[1764010165478,0.0112709,88724.0,88720.0,0.01586]
[1764010165678,0.01127116,88722.0,88718.0,0.22543234]
[1764010165878,0.01127128,88721.0,88717.0,0.225431]
[1764010166084,0.2254234,88722.0,88717.0,0.22543376]
[1764010166419,0.22542669,88721.0,88717.0,0.22543593]
[1764010166619,0.01127103,88723.0,88717.0,0.27297145]
[1764010166844,0.01127128,88721.0,88717.0,0.27297145]
[1764010167045,0.22598502,88718.0,88716.0,0.01586]
[1764010167247,0.23670485,88719.0,88716.0,0.01586]
[1764010167450,0.01127154,88719.0,88716.0,0.24129738]
[1764010167647,0.01127154,88719.0,88716.0,0.01586]
[1764010168002,0.22543847,88716.0,88715.0,0.01586]
[1764010168204,0.23671039,88716.0,88708.0,0.01586]
[1764010168325,0.0112723,88713.0,88709.0,0.22545614]
[1764010168729,0.04099365,88712.0,88710.0,0.2254536]
[1764010168935,0.02112122,88711.0,88710.0,0.2254536]
[1764010169332,0.02112122,88711.0,88710.0,0.26870897]
[1764010169558,0.02112122,88711.0,88710.0,0.2461636]
[1764010169763,0.02112122,88711.0,88710.0,0.2778436]
[1764010169936,0.02112122,88711.0,88710.0,0.36913391]
[1764010170512,0.02112122,88711.0,88710.0,0.37913391]
[1764010171507,0.00038928,88729.0,88728.0,0.22540798]
[1764010171734,0.00038928,88729.0,88728.0,0.27024837]
[1764010171889,0.00038928,88729.0,88728.0,0.70192837]
[1764010172508,0.00038928,88729.0,88728.0,0.30192837]
[1764010172808,0.00038928,88729.0,88728.0,0.31108837]
[1764010173246,0.00127652,88729.0,88728.0,0.39657247]
[1764010173440,0.00127652,88729.0,88728.0,0.31108837]
[1764010173672,0.00116603,88742.0,88739.0,0.22538004]
[1764010173946,0.00031674,88740.0,88739.0,0.32473345]
[1764010174147,0.00031674,88740.0,88739.0,0.35641345]
[1764010174855,0.00031674,88740.0,88739.0,0.35741345]
[1764010175001,0.00031674,88740.0,88739.0,0.35641345]
[1764010175398,0.00031674,88740.0,88739.0,0.35741345]
[1764010175827,0.00031674,88740.0,88739.0,0.35841345]
[1764010177117,0.00031674,88740.0,88739.0,0.36841345]
[1764010177314,0.00031674,88740.0,88739.0,0.35841345]
[1764010178144,0.00031674,88740.0,88739.0,0.28967004]
[1764010178570,0.00031674,88740.0,88739.0,0.29967004]
[1764010178978,0.00031674,88740.0,88739.0,0.29683004]
[1764010179364,0.00065319,88740.0,88739.0,0.29683004]
[1764010180342,0.00065319,88740.0,88739.0,0.69683004]
[1764010180852,0.00065319,88740.0,88739.0,0.23728004]
[1764010181053,0.00065319,88740.0,88739.0,0.0119]
[1764010181461,0.00065319,88740.0,88739.0,0.002]
[1764010181700,0.01126912,88738.0,88733.0,0.22539433]
[1764010181899,0.22538004,88739.0,88727.0,0.03168]
[1764010182057,0.00031674,88740.0,88739.0,0.22538004]
[1764010182266,0.00031674,88740.0,88739.0,0.26862804]
[1764010182459,0.00027374,88740.0,88734.0,0.22539215]
[1764010182684,0.23666315,88734.0,88728.0,0.00712823]
[1764010182850,0.01126963,88734.0,88726.0,0.0099]
[1764010183061,0.01126989,88732.0,88727.0,0.22541052]
[1764010183277,0.01126951,88735.0,88726.0,0.0099]
[1764010183536,0.01126951,88735.0,88726.0,0.23531278]
[1764010183537,0.01127001,88731.0,88726.0,0.23531278]
[1764010183705,0.01126925,88737.0,88726.0,0.0099]
[1764010183912,0.23665769,88736.0,88731.0,0.22540002]
[1764010184099,0.024629,88739.0,88733.0,0.22539493]
[1764010184299,0.01336,88739.0,88728.0,0.23667837]
[1764010184500,0.00743374,88740.0,88738.0,0.02021]
[1764010184720,0.00743374,88740.0,88739.0,0.24559004]
[1764010184896,0.00743374,88740.0,88739.0,0.31860712]
[1764010185095,0.00743374,88740.0,88739.0,0.29839712]
[1764010185295,0.00743374,88740.0,88739.0,0.22538004]
[1764010185951,0.00027374,88740.0,88739.0,0.22538004]
[1764010186151,0.00027374,88740.0,88738.0,0.22538057]
[1764010186732,0.00127374,88740.0,88738.0,0.22538057]
[1764010187202,0.00027374,88740.0,88738.0,0.22538057]
[1764010187408,0.00027374,88740.0,88739.0,0.09353385]
[1764010187583,0.00066807,88763.0,88750.0,0.2]
[1764010187790,0.00066807,88763.0,88762.0,0.22532164]
[1764010187924,0.02172903,88763.0,88762.0,0.22532164]
[1764010188324,0.02924772,88763.0,88762.0,0.22532164]
[1764010188768,0.00961772,88763.0,88762.0,0.22532164]
[1764010189088,0.00961772,88763.0,88762.0,0.29629861]
[1764010189714,0.00961772,88763.0,88762.0,0.07097697]
[1764010189851,0.00861772,88763.0,88762.0,0.07097697]
[1764010190192,0.00270772,88763.0,88762.0,0.07097697]
[1764010190390,0.00270772,88763.0,88762.0,0.11766697]
[1764010190813,0.00270772,88763.0,88762.0,0.04669]
[1764010191116,0.00270772,88763.0,88762.0,0.01864]
[1764010191287,0.00229056,88763.0,88762.0,0.01864]
[1764010191473,0.00229056,88763.0,88761.0,0.22532231]
[1764010191652,0.00125091,88763.0,88761.0,0.22532231]
[1764010191857,0.00100909,88762.0,88761.0,0.31624541]
[1764010192296,0.00100909,88762.0,88761.0,0.22532231]
[1764010193327,0.02206015,88762.0,88761.0,0.22532231]
[1764010195034,0.02206015,88762.0,88761.0,0.24396231]
[1764010195236,0.02206015,88762.0,88761.0,0.27201231]
[1764010195509,0.02206015,88762.0,88758.0,0.22532738]
[1764010195510,0.00100909,88762.0,88758.0,0.22532738]
[1764010195685,0.02105177,88761.0,88759.0,0.04665312]
[1764010195825,0.01448091,88763.0,88762.0,0.22532164]
[1764010196026,0.03553315,88763.0,88762.0,0.22532164]
[1764010196228,0.0572028,88763.0,88754.0,0.00793]
[1764010196436,0.02105224,88762.0,88761.0,0.22532418]
[1764010196832,0.02105224,88762.0,88761.0,0.27201418]
[1764010197247,0.02105224,88762.0,88761.0,0.22532418]
[1764010197880,0.10300429,88781.0,88764.0,0.01126582]
[1764010198234,0.01126417,88777.0,88762.0,0.01864]
[1764010198422,0.00011717,88781.0,88762.0,0.04669]
[1764010198631,0.00011717,88781.0,88780.0,0.25910596]
[1764010198784,0.00011717,88781.0,88780.0,0.31092463]
[1764010199191,0.00011717,88781.0,88780.0,0.28715596]
[1764010199377,0.00211717,88781.0,88780.0,0.28715596]
[1764010199593,0.00111717,88781.0,88780.0,0.28715596]
[1764010199797,0.00011717,88781.0,88780.0,0.28715596]
[1764010200222,0.00011717,88781.0,88780.0,0.26630596]
[1764010200443,0.00011717,88781.0,88780.0,0.3908242]
[1764010201013,0.00011717,88781.0,88780.0,0.29435596]
[1764010202035,0.00011717,88781.0,88780.0,0.30435596]
[1764010202457,0.00170691,88781.0,88780.0,0.30435596]
[1764010203063,0.00170691,88781.0,88780.0,0.30535596]
[1764010203487,0.00170691,88781.0,88780.0,0.28815596]
[1764010203897,0.00170691,88781.0,88780.0,0.29535596]
[1764010204121,0.00170691,88781.0,88780.0,0.3968556]
[1764010204255,0.00170691,88781.0,88780.0,0.4068556]
[1764010204886,0.00170691,88781.0,88780.0,0.3968556]
[1764010205271,0.00170691,88781.0,88780.0,0.4068556]
[1764010206606,0.00170691,88781.0,88780.0,0.3896556]
[1764010206905,0.00170691,88781.0,88780.0,0.4068556]
[1764010207148,0.00170691,88781.0,88780.0,0.7298556]
[1764010207320,0.00025413,88799.0,88798.0,0.54823029]
[1764010207498,0.00025413,88799.0,88798.0,0.60212029]
[1764010207699,0.001125,88812.0,88801.0,0.323]
[1764010207900,0.001125,88812.0,88802.0,0.57686015]
[1764010208140,0.001125,88812.0,88802.0,0.65751145]
[1764010208342,0.001125,88812.0,88802.0,0.78606109]
[1764010208621,0.90004437,88820.0,88819.0,0.03383]
[1764010208829,0.90043588,88820.0,88819.0,0.04103]
[1764010208958,0.90043588,88820.0,88819.0,0.06908]
[1764010209161,0.90043588,88820.0,88819.0,0.07908]
[1764010209362,0.90043588,88820.0,88819.0,0.39939757]
[1764010209545,0.90043588,88820.0,88819.0,0.40939757]
[1764010209752,0.90043588,88820.0,88819.0,0.39219757]
[1764010209952,0.90043588,88820.0,88819.0,0.06919757]
[1764010210171,0.90043588,88820.0,88819.0,0.07639757]
[1764010210430,0.90043588,88820.0,88819.0,0.02647]
[1764010210705,0.9213694,88820.0,88819.0,0.01703]
[1764010211022,0.90043588,88820.0,88819.0,0.01703]
[1764010211161,0.90043588,88820.0,88819.0,0.00983]
[1764010211366,0.9213607,88820.0,88819.0,0.0092]
[1764010211560,0.9213607,88820.0,88819.0,0.001]
[1764010212011,0.9419907,88820.0,88819.0,0.22617704]
[1764010212173,0.9419907,88820.0,88819.0,0.22517704]
[1764010212376,0.9213607,88820.0,88819.0,0.22517704]
[1764010212983,0.9213607,88820.0,88819.0,0.24381704]
[1764010213162,0.9213607,88820.0,88819.0,0.27186704]
[1764010213368,0.9213607,88820.0,88819.0,0.37018455]
[1764010213572,0.92255212,88820.0,88819.0,0.37018455]
[1764010213983,0.9016273,88820.0,88819.0,0.37018455]
[1764010214326,0.9016273,88820.0,88819.0,0.22517704]
[1764010214501,0.92254817,88820.0,88819.0,0.22517704]
[1764010215116,0.94385817,88820.0,88817.0,0.23238069]
[1764010215324,0.90043588,88820.0,88819.0,0.22517704]
[1764010215494,0.92136496,88820.0,88811.0,0.22519579]
[1764010215698,0.02131,88818.0,88816.0,0.22518337]
[1764010215933,0.02131,88818.0,88816.0,0.22518465]
[1764010215934,0.02092908,88817.0,88816.0,0.22518465]
[1764010216220,0.07162908,88817.0,88814.0,0.22518818]
[1764010216399,0.03587,88812.0,88801.0,0.01388]
[1764010216601,0.0209371,88811.0,88802.0,0.0072]
[1764010216798,0.0209371,88810.0,88803.0,0.0072]
[1764010217116,0.0209371,88809.0,88803.0,0.0072]
[1764010217316,0.01126037,88807.0,88803.0,0.0072]
[1764010217518,0.0209371,88806.0,88804.0,0.22521508]
[1764010217699,0.0209371,88806.0,88794.0,0.01126202]
[1764010217700,0.0209371,88805.0,88795.0,0.0072]
[1764010217899,0.0209371,88804.0,88796.0,0.22523537]
[1764010218239,0.0209371,88803.0,88802.0,0.22521911]
[1764010218481,0.01456,88797.0,88795.0,0.0072]
[1764010218700,0.04227151,88796.0,88792.0,0.0072]
[1764010218903,0.02131,88790.0,88786.0,0.22525938]
[1764010219017,0.01904173,88790.0,88789.0,0.22525312]
[1764010219217,0.04000595,88790.0,88789.0,0.02324531]
[1764010219421,0.06939595,88790.0,88787.0,0.22525737]
[1764010219622,0.02131,88788.0,88784.0,0.22526458]
[1764010219830,0.02096422,88787.0,88786.0,0.22526073]
[1764010220035,0.02096422,88787.0,88786.0,0.2477868]
[1764010220248,0.01456,88804.0,88795.0,0.01126189]
[1764010220474,0.02097334,88803.0,88802.0,0.22522015]
[1764010220882,0.02097334,88803.0,88802.0,0.26229216]
[1764010221081,0.02097334,88803.0,88802.0,0.23977015]
[1764010221298,0.02097334,88803.0,88802.0,0.22522015]
[1764010221531,0.02097334,88803.0,88802.0,0.24774216]
[1764010222607,0.02197334,88803.0,88802.0,0.22522015]
[1764010223105,0.02197334,88803.0,88801.0,0.22522262]
[1764010223305,0.02097334,88802.0,88801.0,0.22522262]
[1764010224547,0.02097334,88802.0,88801.0,0.26162488]
[1764010224757,0.02097334,88802.0,88801.0,0.23910262]
[1764010225133,0.02197334,88802.0,88801.0,0.23910262]
[1764010225482,0.002,88802.0,88801.0,0.29836262]
[1764010225632,0.002,88802.0,88801.0,0.3365157]
[1764010225832,0.002,88802.0,88801.0,0.3437157]
[1764010226234,0.002,88802.0,88801.0,0.3234357]
[1764010226474,0.002,88802.0,88801.0,0.23242262]
[1764010226696,0.001,88802.0,88801.0,0.23242262]
[1764010226914,0.02939,88811.0,88809.0,0.22520145]
[1764010227079,0.02101794,88810.0,88809.0,0.22520145]
[1764010227258,0.04232794,88810.0,88801.0,0.0092]
[1764010227442,0.02950738,88811.0,88801.0,0.0092]
[1764010227443,0.04232794,88809.0,88807.0,0.22520579]
[1764010227643,0.00011738,88811.0,88809.0,0.2252024]
[1764010227834,0.02103045,88810.0,88809.0,0.2252024]
[1764010228228,0.02103045,88810.0,88807.0,0.22520681]
[1764010228432,0.02131,88808.0,88807.0,0.22520681]
[1764010228645,0.04234045,88808.0,88807.0,0.22520681]
[1764010228843,0.02131,88808.0,88807.0,0.22520681]
[1764010229065,0.02131,88808.0,88801.0,0.0072]
[1764010229066,0.0112605,88806.0,88801.0,0.23242197]
[1764010229287,0.02131,88802.0,88800.0,0.22522369]
[1764010229481,0.00011738,88811.0,88810.0,0.22519986]
[1764010229681,0.00011738,88811.0,88810.0,0.23239986]
[1764010229905,0.00011738,88811.0,88810.0,0.28165986]
[1764010230098,0.00011738,88811.0,88810.0,0.29165986]
[1764010230256,0.00011738,88811.0,88810.0,0.36107118]
[1764010230462,0.00011738,88811.0,88810.0,0.28165986]
[1764010230662,0.00011738,88811.0,88810.0,0.25267986]
[1764010230865,0.00011738,88811.0,88810.0,0.23239986]
[1764010232962,0.00011738,88811.0,88810.0,0.28165986]
[1764010233311,0.00011738,88811.0,88810.0,0.23239986]
[1764010233470,0.00103395,88811.0,88810.0,0.23239986]
[1764010235084,0.05173395,88811.0,88810.0,0.23239986]
[1764010235284,0.05173395,88811.0,88810.0,0.0072]
[1764010235484,0.27693336,88811.0,88802.0,0.0072]
[1764010235698,0.02131,88810.0,88809.0,0.2252024]
[1764010235892,0.0507,88810.0,88809.0,0.2252024]
[1764010236181,0.02219603,88810.0,88809.0,0.2252024]
[1764010236750,0.01126024,88808.0,88802.0,0.23241932]
[1764010236871,0.02131,88803.0,88799.0,0.22522556]
[1764010237076,0.02131,88800.0,88793.0,0.0072]
[1764010237368,0.02939,88806.0,88793.0,0.0072]
[1764010237571,0.02131,88794.0,88793.0,0.0072]
[1764010238220,0.02131,88794.0,88792.0,0.22524515]
[1764010238221,0.0507,88794.0,88792.0,0.22524515]
[1764010238422,0.02131,88793.0,88792.0,0.22524515]
[1764010238750,0.0507,88793.0,88792.0,0.22524515]
[1764010238929,0.0507,88793.0,88791.0,0.22524519]
[1764010239131,0.0507,88792.0,88790.0,0.22524878]
[1764010239472,0.0507,88791.0,88783.0,0.0072]
[1764010239753,0.02131,88790.0,88789.0,0.22525249]
[1764010240054,0.02131,88790.0,88784.0,0.22526573]
[1764010240055,0.02939,88790.0,88784.0,0.22526573]
[1764010240215,0.01456,88784.0,88783.0,0.23246592]
[1764010240413,0.01456,88784.0,88783.0,0.0072]
[1764010240750,0.03587,88784.0,88783.0,0.0072]
[1764010241131,0.03587,88784.0,88783.0,0.23246835]
[1764010241939,0.01456,88784.0,88783.0,0.23246835]
[1764010242138,0.03587,88784.0,88783.0,0.23246835]
[1764010242340,0.06526,88784.0,88783.0,0.23246835]
[1764010242588,0.03587,88784.0,88783.0,0.23246835]
[1764010244363,0.01456,88784.0,88783.0,0.23246835]
[1764010244967,0.01422,88791.0,88786.0,0.01126303]
[1764010245142,0.01422,88791.0,88788.0,0.22525566]
[1764010245478,0.01422,88791.0,88790.0,0.22525059]
[1764010245689,0.04253,88791.0,88790.0,0.22525059]
[1764010245882,0.0619,88791.0,88790.0,0.22525059]
[1764010246779,0.01126316,88785.0,88770.0,0.01729506]
[1764010247096,0.10300429,88784.0,88783.0,0.22526835]
[1764010247301,0.10300429,88784.0,88777.0,0.22528208]
[1764010247455,0.04904,88783.0,88776.0,0.02252861]
[1764010247659,0.04904,88783.0,88775.0,0.0072]
[1764010247660,0.06030341,88783.0,88777.0,0.22528356]
[1764010247857,0.22528357,88777.0,88776.0,0.02252861]
[1764010248058,0.01126544,88767.0,88757.0,0.22533433]
[1764010248303,0.01,88757.0,88755.0,0.22533433]
[1764010248457,0.02962,88757.0,88756.0,0.00135531]
[1764010248661,0.05904,88757.0,88756.0,0.00135531]
[1764010249298,0.06624,88757.0,88756.0,0.00135531]
[1764010250687,0.06724,88757.0,88756.0,0.00135531]
[1764010250887,0.06624,88757.0,88756.0,0.00135531]
[1764010251342,0.06724,88757.0,88756.0,0.00135531]
[1764010251543,0.39024,88757.0,88756.0,0.00135531]
[1764010251685,0.011,88757.0,88756.0,0.22669218]
[1764010251889,0.001,88757.0,88756.0,0.00135531]
[1764010252242,0.02162,88757.0,88756.0,0.00135531]
[1764010252435,0.05104,88757.0,88756.0,0.00135531]
[1764010252643,0.05004,88757.0,88756.0,0.00135531]
[1764010253062,0.01456,88763.0,88756.0,0.00135531]
[1764010253352,0.01456,88763.0,88761.0,0.22532386]
[1764010253497,0.01456,88763.0,88756.0,0.00135531]
[1764010253498,0.01126633,88760.0,88756.0,0.00135531]
[1764010253766,0.01962,88757.0,88756.0,0.00135531]
[1764010253965,0.02062,88757.0,88756.0,0.00135531]
[1764010254254,0.04904,88757.0,88756.0,0.00135531]
[1764010254694,0.27437433,88757.0,88756.0,0.00135531]
[1764010255119,0.27537433,88757.0,88756.0,0.00135531]
[1764010256369,0.05004,88757.0,88756.0,0.00135531]
[1764010258060,0.27537433,88757.0,88756.0,0.00135531]
[1764010258858,0.05004,88757.0,88756.0,0.00135531]
[1764010259084,0.05004,88757.0,88756.0,0.22669218]
[1764010259282,0.05004,88757.0,88756.0,0.00135531]
[1764010259628,0.27537433,88757.0,88756.0,0.00135531]
[1764010260013,0.05004,88757.0,88756.0,0.22669218]
[1764010260300,0.001,88757.0,88756.0,0.22669218]
[1764010260659,0.001,88757.0,88756.0,0.00135531]
[1764010260862,0.001,88757.0,88756.0,0.24505218]
[1764010261067,0.001,88757.0,88756.0,0.27298218]
[1764010261385,0.001,88757.0,88756.0,0.28298218]
[1764010261584,0.00894,88800.0,88756.0,0.28298218]
[1764010261585,0.22523318,88797.0,88788.0,0.22525566]
[1764010261800,0.04928448,88789.0,88783.0,0.0072]
[1764010261991,0.07534193,88789.0,88783.0,0.22526644]
[1764010262195,0.01126278,88788.0,88784.0,0.02252664]
[1764010262398,0.01126278,88788.0,88776.0,0.0072]
[1764010262399,0.01962,88784.0,88776.0,0.0072]
[1764010262631,0.10300429,88780.0,88768.0,0.23657162]
[1764010262823,0.10300429,88780.0,88778.0,0.22528046]
[1764010263487,0.10300429,88780.0,88769.0,0.01313717]
[1764010263689,0.23652757,88785.0,88769.0,0.01313717]
[1764010263690,0.01126227,88792.0,88788.0,0.22525346]
[1764010264021,0.0072,88797.0,88792.0,0.22524525]
[1764010264227,2.0,88797.0,88796.0,0.22523537]
[1764010264429,0.00894,88800.0,88798.0,0.22523029]
[1764010264629,0.10300429,88799.0,88798.0,0.22523029]
[1764010265144,0.10330984,88799.0,88798.0,0.22523029]
[1764010265339,0.10330984,88799.0,88779.0,0.02793]
[1764010265340,0.01126202,88794.0,88779.0,0.02793]
[1764010265514,0.01126227,88792.0,88788.0,0.22525487]
[1764010265718,0.01126265,88789.0,88778.0,0.01402]
[1764010265921,0.01126252,88790.0,88779.0,0.00604148]
[1764010266100,0.23652433,88786.0,88770.0,0.01126506]
[1764010266304,0.10300429,88785.0,88770.0,0.01126506]
[1764010266520,0.01126329,88784.0,88770.0,0.00011717]
[1764010266717,0.01126379,88780.0,88776.0,0.22528488]
[1764010266884,0.01126392,88779.0,88770.0,0.00011717]
[1764010267092,0.01126468,88773.0,88770.0,0.00011717]
[1764010267316,0.12262429,88771.0,88770.0,0.00011717]
[1764010267748,0.14652429,88771.0,88770.0,0.00011717]
[1764010267947,0.46952429,88771.0,88770.0,0.00011717]
[1764010269068,0.55107649,88771.0,88770.0,0.00011717]
[1764010269601,2.55107649,88771.0,88770.0,0.00011717]
[1764010269948,2.55307649,88771.0,88770.0,0.00011717]
[1764010270156,2.55107649,88771.0,88770.0,0.00011717]
[1764010270361,2.55207649,88771.0,88770.0,0.00011717]
[1764010270559,2.6672978,88771.0,88770.0,0.00011717]
[1764010270728,2.55207649,88771.0,88770.0,0.00011717]
[1764010270932,2.50107649,88771.0,88770.0,0.00011717]
[1764010271210,2.50207649,88771.0,88770.0,0.00011717]
[1764010271567,2.50407649,88771.0,88770.0,0.00011717]
[1764010272967,2.51127649,88771.0,88770.0,0.00011717]
[1764010273517,2.50407649,88771.0,88770.0,0.00011717]
[1764010273643,2.51127649,88771.0,88770.0,0.00011717]
[1764010273867,2.51027649,88771.0,88770.0,0.00011717]
[1764010274078,2.51127649,88771.0,88770.0,0.00011717]
[1764010274494,2.50927649,88771.0,88770.0,0.00011717]
[1764010274712,2.51027649,88771.0,88770.0,0.00011717]
[1764010275751,2.56027649,88771.0,88770.0,0.00011717]
[1764010275950,2.58707224,88771.0,88770.0,0.00011717]
[1764010276153,2.56027649,88771.0,88770.0,0.00011717]
[1764010276500,2.56027649,88771.0,88764.0,0.00123799]
[1764010276501,0.22533508,88757.0,88741.0,0.01363]
[1764010276683,0.10300429,88749.0,88742.0,0.01126862]
[1764010276844,0.10300429,88749.0,88748.0,0.22535719]
[1764010277258,0.01175,88750.0,88749.0,0.22535465]
[1764010277495,0.01175,88750.0,88749.0,0.27380636]
[1764010277698,0.10300429,88756.0,88755.0,0.22533941]
[1764010278257,0.10300429,88756.0,88754.0,0.22533983]
[1764010279303,0.10300429,88756.0,88754.0,0.19148719]
[1764010279508,0.10300429,88756.0,88753.0,0.22534151]
[1764010279509,0.02931697,88755.0,88752.0,0.22534151]
[1764010279812,0.07015165,88756.0,88753.0,0.22534151]
[1764010279986,0.06915165,88756.0,88754.0,0.22534071]
[1764010280677,0.06915165,88756.0,88755.0,0.22533941]
[1764010281598,0.01175,88757.0,88756.0,0.22533687]
[1764010282117,0.22534173,88755.0,88752.0,0.02253415]
[1764010282280,0.10300429,88753.0,88752.0,0.02253415]
[1764010282481,0.10300429,88753.0,88752.0,0.24788118]
[1764010282682,0.10300429,88753.0,88752.0,0.22534703]
[1764010282895,0.10845429,88753.0,88752.0,0.00036694]
[1764010283119,0.10845429,88753.0,88752.0,0.22571397]
[1764010283523,0.10845429,88753.0,88752.0,0.00036694]
[1764010283978,0.33379878,88753.0,88752.0,0.00036694]
[1764010285024,0.34024878,88753.0,88752.0,0.00036694]
[1764010285228,0.33924878,88753.0,88752.0,0.00036694]
[1764010285667,0.33479878,88753.0,88752.0,0.00036694]
[1764010285898,0.10945429,88753.0,88752.0,0.00036694]
[1764010286232,0.10400429,88753.0,88752.0,0.22571397]
[1764010288928,0.001,88753.0,88752.0,0.38559513]
[1764010290027,0.00716,88769.0,88752.0,0.38559513]
[1764010290028,0.00716,88769.0,88768.0,0.22530641]
[1764010290186,0.00727732,88769.0,88768.0,0.22530641]
[1764010290603,0.00011732,88769.0,88768.0,0.27079641]
[1764010291001,0.00011732,88769.0,88768.0,0.24338641]
[1764010291256,0.00111732,88769.0,88768.0,0.24338641]
[1764010291824,0.00211732,88769.0,88768.0,0.27079641]
[1764010292240,0.00111732,88769.0,88768.0,0.27079641]
[1764010292848,0.00011732,88769.0,88768.0,0.27079641]
[1764010293437,0.00011732,88769.0,88768.0,0.36908635]
[1764010293836,0.00011732,88769.0,88768.0,0.37008635]
[1764010294287,0.22526067,88788.0,88768.0,0.37008635]
[1764010294288,0.10300429,88783.0,88780.0,0.22527596]
[1764010294480,0.10300429,88783.0,88782.0,0.22527088]
[1764010295600,0.00716,88791.0,88790.0,0.22525059]
[1764010295978,0.01126278,88788.0,88786.0,0.22526033]
[1764010296181,0.00716,88791.0,88790.0,0.22525059]
[1764010296944,0.00024445,88797.0,88790.0,0.22525059]
[1764010297165,0.00036183,88797.0,88796.0,0.22523537]
[1764010297401,0.01126202,88794.0,88787.0,0.04429727]
[1764010297602,0.01126291,88787.0,88764.0,0.00123798]
[1764010297816,0.10300429,88777.0,88773.0,0.22529317]
[1764010297961,0.11426846,88777.0,88772.0,0.2252961]
[1764010298158,0.10300429,88777.0,88766.0,0.00784405]
[1764010298360,0.0112643,88776.0,88770.0,0.22529883]
[1764010298563,0.10300429,88777.0,88776.0,0.22528611]
[1764010298766,0.01126455,88774.0,88767.0,0.0839917]
[1764010299032,0.01126532,88768.0,88764.0,0.00123798]
[1764010299182,0.22530387,88769.0,88764.0,0.00123798]
[1764010299384,0.22531182,88766.0,88764.0,0.00123798]
[1764010299587,0.01126506,88770.0,88764.0,0.00123798]
[1764010299788,0.0112643,88776.0,88765.0,0.22531403]
[1764010299994,0.10300429,88777.0,88764.0,0.00123798]
[1764010300233,0.23657233,88768.0,88764.0,0.00123798]
[1764010300463,0.01126544,88767.0,88764.0,0.00123798]
[1764010300734,0.22531403,88765.0,88764.0,0.00123798]
[1764010302839,0.001,88765.0,88764.0,0.00123798]
[1764010303040,0.002,88765.0,88764.0,0.00123798]
[1764010303445,0.002,88765.0,88764.0,0.24463454]
[1764010303648,0.002,88765.0,88764.0,0.27281454]
[1764010304534,0.001,88765.0,88764.0,0.27281454]
[1764010304898,0.001,88765.0,88764.0,0.28269554]
[1764010305673,0.1,88767.0,88766.0,0.22531149]
[1764010305896,0.1,88767.0,88766.0,0.35186971]
[1764010306095,0.1,88767.0,88766.0,0.39004971]
[1764010307206,0.1,88767.0,88766.0,0.39104971]